bitfinex/quotes_SOLUSD_20250310
["timestamp","ask_amount","ask_price","bid_price","bid_amount"]
[1741636189819,0.03,119.74,119.73,67.00613024]
[1741636192355,0.03,119.74,119.73,204.50613024]
[1741636192551,0.03,119.74,119.73,211.13433024]
[1741636192857,0.03,119.76,119.75,87.00613024]
[1741636194849,0.03,119.76,119.75,224.50613024]
[1741636195430,0.03,119.76,119.71,25.121646]
[1741636195638,48.10215824,119.76,119.71,137.5]
[1741636195821,48.07215824,119.74,119.71,0.14216157]
[1741636196024,48.07215824,119.74,119.68,52.33478675]
[1741636196248,33.64,119.73,119.67,6.494]
[1741636196436,48.07215824,119.7,119.66,2.0007]
[1741636196620,48.07215824,119.72,119.68,0.14216157]
[1741636197248,13.64,119.74,119.68,0.14216157]
[1741636197555,20.0,119.71,119.66,0.28432314]
[1741636197741,48.07215824,119.7,119.66,0.28432314]
[1741636197937,48.07215824,119.7,119.66,0.14216157]
[1741636198448,48.07215824,119.71,119.66,0.14216157]
[1741636198645,48.07215824,119.72,119.66,48.21431981]
[1741636199030,48.07215824,119.71,119.66,48.21431981]
[1741636199333,48.07215824,119.7,119.65,0.28432314]
[1741636200128,48.07215824,119.71,119.66,48.07215824]
[1741636200343,0.03,119.76,119.71,18.933972]
[1741636200547,0.03,119.76,119.75,0.28432314]
[1741636200757,0.03,119.76,119.75,67.00613024]
[1741636200933,0.03,119.76,119.75,204.50613024]
[1741636201950,0.03,119.76,119.75,137.5]
[1741636202129,0.03,119.76,119.73,4.13245212]
[1741636202130,48.10215824,119.76,119.72,0.28432314]
[1741636202334,0.03,119.76,119.74,0.14216157]
[1741636202742,0.03,119.76,119.72,67.00613024]
[1741636202950,48.07215824,119.75,119.71,137.5]
[1741636203145,0.03,119.76,119.68,48.35648138]
[1741636203326,0.03,119.76,119.71,0.14216157]
[1741636203538,48.07215824,119.75,119.71,0.14216157]
[1741636203751,0.03,119.76,119.68,185.71431981]
[1741636203752,48.07215824,119.73,119.68,185.71431981]
[1741636203952,48.07215824,119.74,119.69,18.79181043]
[1741636204129,0.03,119.76,119.71,0.14216157]
[1741636204326,0.03,119.76,119.71,72.205194]
[1741636204327,72.09303243,119.76,119.71,72.205194]
[1741636204649,0.03,119.76,119.71,72.205194]
[1741636205040,0.03,119.76,119.73,0.14216157]
[1741636205340,0.03,119.76,119.75,90.99700443]
[1741636205538,0.03,119.76,119.75,228.49700443]
[1741636205936,0.03,119.76,119.75,156.433972]
[1741636206164,0.03,119.76,119.75,137.78432314]
[1741636206455,0.03,119.76,119.75,137.64216157]
[1741636206656,72.09303243,119.76,119.7,139.379]
[1741636206957,0.03,119.76,119.72,72.205194]
[1741636207150,72.06303243,119.74,119.7,0.14216157]
[1741636207656,0.03,119.76,119.73,72.34735557]
[1741636207858,0.03,119.76,119.75,72.205194]
[1741636208034,0.03,119.76,119.75,0.14216157]
[1741636208449,0.03,119.76,119.75,90.99700443]
[1741636208669,0.03,119.76,119.75,228.49700443]
[1741636209260,0.03,119.76,119.75,137.5]
[1741636209977,0.03,119.76,119.73,0.28432314]
[1741636210459,0.03,119.76,119.73,72.34735557]
[1741636210637,0.03,119.76,119.75,90.99700443]
[1741636211041,0.03,119.76,119.75,0.28432314]
[1741636211249,0.03,119.76,119.75,228.49700443]
[1741636211564,0.063,119.8,119.79,0.28432314]
[1741636212333,0.063,119.8,119.79,90.99700443]
[1741636212834,0.063,119.8,119.79,228.49700443]
[1741636213038,0.03,119.84,119.83,38.933972]
[1741636213342,0.063,119.86,119.84,22.828572]
[1741636213555,13.06164261,119.97,119.86,20.933972]
[1741636213739,13.06164261,119.97,119.9,18.933972]
[1741636213940,13.06164261,119.97,119.94,72.06303243]
[1741636214248,85.12467504,119.97,119.91,72.06303243]
[1741636214441,72.06303243,119.96,119.91,72.06303243]
[1741636214644,72.06303243,119.95,119.88,18.64964886]
[1741636214941,72.06303243,119.94,119.89,72.06303243]
[1741636215136,13.06164261,119.97,119.91,72.06303243]
[1741636215336,13.06164261,119.97,119.94,72.06303243]
[1741636215565,13.06164261,119.97,119.95,72.06303243]
[1741636215739,13.06164261,119.97,119.96,72.06303243]
[1741636216195,13.06164261,119.97,119.96,0.14216157]
[1741636216367,13.06164261,119.97,119.96,72.205194]
[1741636216563,221.1,119.98,119.96,72.06303243]
[1741636216867,221.1,119.98,119.93,72.06303243]
[1741636217039,293.16303243,119.98,119.93,72.06303243]
[1741636217241,221.1,119.98,119.93,72.06303243]
[1741636217441,293.16303243,119.98,119.92,209.56303243]
[1741636217644,72.06303243,119.96,119.88,137.5]
[1741636217957,221.1,119.98,119.93,72.06303243]
[1741636218162,293.16303243,119.98,119.92,72.06303243]
[1741636218366,293.16303243,119.98,119.93,72.06303243]
[1741636218542,221.1,119.98,119.94,72.06303243]
[1741636218861,221.1,119.98,119.95,72.06303243]
[1741636219037,221.1,119.98,119.94,0.14216157]
[1741636219244,3.1092686,120.01,119.97,72.205194]
[1741636219443,3.1092686,120.01,119.99,72.06303243]
[1741636219653,3.1092686,120.01,120.0,72.06303243]
[1741636219871,3.1092686,120.01,120.0,72.205194]
[1741636220367,3.1092686,120.01,120.0,72.34735557]
[1741636220738,3.1092686,120.01,120.0,72.06303243]
[1741636220955,3.1092686,120.01,120.0,72.34735557]
[1741636221154,3.1392686,120.01,120.0,72.06303243]
[1741636221364,3.1392686,120.01,119.96,148.28545696]
[1741636221365,3.1392686,120.01,119.97,0.14216157]
[1741636221573,3.1392686,120.01,119.98,92.06303243]
[1741636221778,75.20230103,120.01,119.96,72.06303243]
[1741636222066,72.06303243,119.99,119.94,72.06303243]
[1741636222263,72.06303243,119.99,119.91,143.8641]
[1741636222264,75.20230103,120.01,119.95,72.205194]
[1741636222563,75.20230103,120.01,119.95,72.06303243]
[1741636222768,3.1392686,120.01,119.95,72.06303243]
[1741636223067,3.1392686,120.01,119.95,0.14216157]
[1741636223068,72.06303243,119.99,119.95,0.14216157]
[1741636223273,72.06303243,119.99,119.93,72.06303243]
[1741636223473,72.06303243,119.97,119.92,72.06303243]
[1741636223640,72.06303243,120.0,119.88,141.71862086]
[1741636223641,72.06303243,119.96,119.88,141.71862086]
[1741636223849,72.06303243,119.96,119.9,72.06303243]
[1741636224352,72.06303243,119.96,119.91,72.06303243]
[1741636224557,72.06303243,119.98,119.92,72.06303243]
[1741636224866,29.28821746,120.01,119.96,72.06303243]
[1741636224867,3.1392686,120.01,119.96,72.06303243]
[1741636225051,75.20230103,120.01,119.95,72.06303243]
[1741636225458,72.06303243,119.99,119.93,20.0]
[1741636225767,72.06303243,120.0,119.94,72.06303243]
[1741636226138,72.06303243,120.0,119.95,0.14216157]
[1741636226341,72.06303243,120.0,119.95,72.06303243]
[1741636226545,3.1392686,120.01,119.97,72.06303243]
[1741636227370,3.1392686,120.01,119.99,72.06303243]
[1741636227665,3.1392686,120.01,120.0,163.06003686]
[1741636227868,220.82,120.12,120.06,0.14216157]
[1741636228051,220.82,120.12,120.09,72.06303243]
[1741636228255,0.03,120.14,120.11,72.205194]
[1741636228446,0.03,120.14,120.13,0.14216157]
[1741636228644,0.03,120.14,120.13,72.205194]
[1741636228866,0.03,120.14,120.13,209.84735557]
[1741636229067,0.03,120.14,120.11,0.14216157]
[1741636229241,0.03,120.14,120.13,90.99700443]
[1741636229660,0.03,120.14,120.12,72.06303243]
[1741636229976,0.03,120.14,120.13,72.06303243]
[1741636230356,0.03,120.14,120.11,137.64216157]
[1741636230557,0.03,120.14,120.11,72.06303243]
[1741636230788,72.06303243,120.13,120.08,72.06303243]
[1741636231195,72.06303243,120.12,120.07,72.06303243]
[1741636231363,72.06303243,120.09,120.02,0.28432314]
[1741636231546,72.06303243,120.1,120.05,0.14216157]
[1741636231861,72.06303243,120.1,120.04,72.06303243]
[1741636232056,72.06303243,120.11,120.05,72.06303243]
[1741636232368,72.06303243,120.1,120.05,0.14216157]
[1741636232871,72.06303243,120.1,120.04,0.14216157]
[1741636233079,72.06303243,120.09,120.04,72.205194]
[1741636233278,72.06303243,120.08,120.03,137.5]
[1741636233466,72.06303243,120.07,120.02,72.205194]
[1741636233651,72.06303243,120.07,120.02,0.14216157]
[1741636233847,72.06303243,120.08,120.02,72.205194]
[1741636234146,72.06303243,120.08,120.03,72.06303243]
[1741636234359,72.06303243,120.07,120.02,0.14216157]
[1741636234555,79.58573243,120.12,120.02,72.34735557]
[1741636234556,72.06303243,120.08,120.02,72.34735557]
[1741636234787,72.06303243,120.07,119.99,20.0]
[1741636235074,72.06303243,120.06,120.01,72.06303243]
[1741636235281,72.06303243,120.06,120.0,72.06303243]
[1741636235573,72.06303243,120.07,120.01,72.06303243]
[1741636235765,72.06303243,120.06,120.01,72.06303243]
[1741636236171,72.06303243,120.07,120.01,72.06303243]
[1741636236376,72.06303243,120.08,120.02,72.06303243]
[1741636236555,72.06303243,120.06,120.01,72.06303243]
[1741636236754,72.06303243,120.05,120.0,137.5]
[1741636236965,72.06303243,120.01,119.91,6.5403]
[1741636237164,72.06303243,119.99,119.93,72.06303243]
[1741636237356,72.06303243,120.0,119.95,72.06303243]
[1741636237555,85.58303243,120.01,119.92,137.78432314]
[1741636237858,27.5368,120.01,119.92,137.5]
[1741636238052,72.06303243,119.96,119.92,137.5]
[1741636238270,72.06303243,119.96,119.91,76.28917166]
[1741636238464,72.06303243,119.96,119.9,72.06303243]
[1741636238688,72.06303243,119.95,119.89,0.28432314]
[1741636238849,72.06303243,119.96,119.9,72.06303243]
[1741636239053,72.06303243,120.0,119.9,72.06303243]
[1741636239272,72.06303243,119.96,119.9,72.06303243]
[1741636239554,72.06303243,119.96,119.89,0.28432314]
[1741636239767,72.06303243,119.96,119.9,72.06303243]
[1741636240479,72.06303243,120.0,119.94,72.34735557]
[1741636240687,155.76523243,120.06,119.96,92.205194]
[1741636240688,72.06303243,120.02,119.96,92.205194]
[1741636241057,72.06303243,120.01,119.96,20.0]
[1741636241262,72.06303243,120.01,119.95,72.06303243]
[1741636241481,72.06303243,120.02,119.96,72.06303243]
[1741636241683,72.06303243,120.01,119.95,72.06303243]
[1741636241864,72.06303243,119.99,119.94,72.205194]
[1741636242188,72.06303243,119.99,119.93,72.06303243]
[1741636242573,72.06303243,119.98,119.93,72.06303243]
[1741636242772,72.06303243,119.98,119.92,92.205194]
[1741636242975,72.06303243,119.97,119.92,92.205194]
[1741636243183,72.06303243,119.97,119.92,24.27282086]
[1741636243389,72.06303243,119.97,119.93,0.14216157]
[1741636243565,220.66,120.01,119.94,72.06303243]
[1741636243566,72.06303243,119.99,119.94,72.06303243]
[1741636244282,72.06303243,119.99,119.93,0.14216157]
[1741636244283,72.06303243,119.98,119.93,72.205194]
[1741636244586,220.66,120.01,119.93,72.205194]
[1741636244587,72.06303243,119.99,119.93,72.205194]
[1741636244772,72.06303243,119.99,119.93,72.268194]
[1741636245286,72.06303243,120.0,119.95,72.06303243]
[1741636245491,220.66,120.01,119.96,72.06303243]
[1741636245661,220.66,120.01,119.94,137.64216157]
[1741636245662,292.72303243,120.01,119.94,137.64216157]
[1741636245985,220.66,120.01,119.97,72.06303243]
[1741636246208,220.66,120.01,120.0,72.06303243]
[1741636246381,72.06303243,120.07,120.01,0.14216157]
[1741636246684,220.7,120.08,120.03,72.06303243]
[1741636247262,220.7,120.08,120.0,72.34735557]
[1741636247263,220.7,120.08,120.04,72.06303243]
[1741636247462,72.06303243,120.09,120.04,72.06303243]
[1741636247695,72.06303243,120.09,120.02,0.14216157]
[1741636247869,240.565,120.11,120.04,72.06303243]
[1741636248071,72.06303243,120.09,120.04,72.06303243]
[1741636248281,72.06303243,120.1,120.04,92.06303243]
[1741636248489,292.76303243,120.11,120.05,72.06303243]
[1741636248791,72.06303243,120.1,120.05,20.14216157]
[1741636249167,72.06303243,120.1,120.05,0.14216157]
[1741636249367,220.7,120.11,120.05,72.205194]
[1741636249587,72.06303243,120.1,120.05,72.205194]
[1741636249796,72.06303243,120.1,120.05,0.14216157]
[1741636249962,72.06303243,120.1,120.05,92.205194]
[1741636250165,292.76303243,120.11,120.05,92.205194]
[1741636250388,220.7,120.11,120.05,92.205194]
[1741636250591,292.76303243,120.11,120.05,92.205194]
[1741636250766,72.06303243,120.1,120.05,92.205194]
[1741636251081,220.7,120.11,120.05,92.205194]
[1741636251284,292.76303243,120.11,120.05,92.205194]
[1741636251584,72.06303243,120.1,120.05,20.14216157]
[1741636251786,228.1931,120.11,120.05,20.0]
[1741636251787,72.06303243,120.08,120.05,20.0]
[1741636251984,228.1931,120.11,120.05,20.0]
[1741636251985,72.06303243,120.09,120.05,20.0]
[1741636252360,72.06303243,120.1,120.05,20.0]
[1741636252589,72.06303243,120.1,120.05,24.13832103]
[1741636253167,72.06303243,120.09,120.05,24.13832103]
[1741636253392,72.06303243,120.1,120.05,24.13832103]
[1741636254089,72.06303243,120.1,120.05,96.20135346]
[1741636254299,220.62,120.11,120.05,96.20135346]
[1741636254666,72.06303243,120.1,120.05,24.13832103]
[1741636255094,72.06303243,120.09,120.05,24.13832103]
[1741636255294,72.06303243,120.1,120.05,24.13832103]
[1741636255463,72.06303243,120.09,120.05,24.13832103]
[1741636255668,72.06303243,120.1,120.05,24.13832103]
[1741636256170,292.68303243,120.11,120.06,72.34735557]
[1741636256391,292.68303243,120.11,120.06,0.14216157]
[1741636256974,220.62,120.11,120.07,72.06303243]
[1741636257274,220.62,120.11,120.08,72.06303243]
[1741636257478,220.62,120.11,120.07,72.06303243]
[1741636258192,220.62,120.11,120.09,20.0]
[1741636258193,0.03,120.1,120.09,20.0]
[1741636259199,0.03,120.1,120.08,72.06303243]
[1741636259588,0.03,120.1,120.09,0.14216157]
[1741636259798,0.03,120.1,120.09,229.705194]
[1741636259982,0.03,120.1,120.09,110.99700443]
[1741636260182,0.03,120.12,120.09,110.99700443]
[1741636260183,0.03,120.12,120.11,90.99700443]
[1741636260393,0.03,120.14,120.13,0.28432314]
[1741636260593,0.03,120.14,120.13,228.49700443]
[1741636260897,0.03,120.14,120.13,209.84735557]
[1741636261095,0.03,120.14,120.13,0.14216157]
[1741636261278,0.03,120.14,120.13,72.34735557]
[1741636261685,0.03,120.14,120.12,150.98]
[1741636261888,0.03,120.14,120.12,223.04303243]
[1741636262099,0.03,120.14,120.1,137.64216157]
[1741636264302,13.46,120.22,120.15,72.205194]
[1741636264499,72.06303243,120.21,120.16,72.06303243]
[1741636264796,72.06303243,120.17,120.13,20.0]
[1741636264999,72.06303243,120.17,120.11,72.205194]
[1741636265204,72.06303243,120.19,120.13,72.34735557]
[1741636265499,72.06303243,120.17,120.11,209.705194]
[1741636265702,72.06303243,120.18,120.12,72.06303243]
[1741636265883,72.06303243,120.19,120.13,72.06303243]
[1741636266279,220.5,120.23,120.18,72.205194]
[1741636266476,220.5,120.23,120.19,72.06303243]
[1741636266706,220.5,120.23,120.15,162.61211043]
[1741636266879,220.5,120.23,120.15,78.525494]
[1741636267401,72.06303243,120.22,120.16,72.06303243]
[1741636267704,72.06303243,120.22,120.17,72.205194]
[1741636267877,220.5,120.23,120.18,92.06303243]
[1741636268079,220.5,120.23,120.19,0.14216157]
[1741636268280,220.5,120.23,120.22,20.14216157]
[1741636268596,3.1092686,120.25,120.22,20.14216157]
[1741636268597,3.1092686,120.25,120.22,72.205194]
[1741636268794,3.1092686,120.25,120.24,72.205194]
[1741636269001,3.1092686,120.25,120.24,209.84735557]
[1741636269300,220.42,120.3,120.25,0.14216157]
[1741636269502,72.06303243,120.28,120.24,137.5]
[1741636270000,72.06303243,120.29,120.24,137.5]
[1741636270200,72.06303243,120.28,120.24,137.5]
[1741636270499,72.06303243,120.25,120.2,209.56303243]
[1741636270698,72.06303243,120.23,120.19,137.64216157]
[1741636270902,72.06303243,120.23,120.18,72.06303243]
[1741636271094,72.06303243,120.22,120.18,0.14216157]
[1741636271476,72.06303243,120.22,120.17,141.88208358]
[1741636271780,72.06303243,120.2,120.17,4.23992201]
[1741636272079,72.06303243,120.22,120.17,72.06303243]
[1741636272285,72.06303243,120.22,120.16,209.705194]
[1741636272502,72.06303243,120.22,120.16,137.64216157]
[1741636272684,72.06303243,120.23,120.18,72.06303243]
[1741636272887,72.06303243,120.22,120.17,72.06303243]
[1741636273280,72.06303243,120.24,120.18,72.06303243]
[1741636273480,72.06303243,120.24,120.19,72.06303243]
[1741636273804,72.06303243,120.23,120.18,209.56303243]
[1741636274280,0.03,120.25,120.18,209.56303243]
[1741636274479,72.06303243,120.23,120.18,209.56303243]
[1741636274684,72.06303243,120.22,120.16,209.705194]
[1741636275007,72.06303243,120.22,120.15,10.49975298]
[1741636275183,72.06303243,120.22,120.17,72.06303243]
[1741636275709,72.06303243,120.2,120.15,4.17945298]
[1741636275919,72.06303243,120.2,120.15,72.06303243]
[1741636276085,72.06303243,120.22,120.17,72.06303243]
[1741636276600,72.06303243,120.21,120.16,72.06303243]
[1741636276811,72.06303243,120.19,120.15,20.0]
[1741636277003,306.45513243,120.24,120.14,4.14279949]
[1741636277004,72.06303243,120.18,120.14,4.14279949]
[1741636277214,72.06303243,120.18,120.12,209.56303243]
[1741636277391,72.06303243,120.18,120.13,72.06303243]
[1741636277594,325.16763243,120.24,120.13,72.06303243]
[1741636277595,72.06303243,120.19,120.13,72.06303243]
[1741636277785,72.06303243,120.18,120.13,72.06303243]
[1741636277980,220.32,120.2,120.13,72.06303243]
[1741636278186,72.06303243,120.18,120.13,72.06303243]
[1741636278879,72.06303243,120.18,120.12,4.24155036]
[1741636278880,72.06303243,120.17,120.12,72.205194]
[1741636279103,72.06303243,120.18,120.12,72.205194]
[1741636279512,72.06303243,120.18,120.13,72.06303243]
[1741636280209,220.32,120.2,120.12,0.14216157]
[1741636280416,72.06303243,120.15,120.11,4.17981134]
[1741636280622,227.8075,120.2,120.11,209.56303243]
[1741636280914,72.06303243,120.15,120.11,137.5]
[1741636281085,72.06303243,120.12,120.07,143.774]
[1741636281292,72.06303243,120.12,120.07,78.33703243]
[1741636281594,72.06303243,120.12,120.07,6.274]
[1741636281918,72.06303243,120.12,120.06,4.23658297]
[1741636282119,7.4921,120.13,120.05,72.06303243]
[1741636282317,72.06303243,120.1,120.05,72.06303243]
[1741636282490,72.06303243,120.09,120.04,209.56303243]
[1741636282811,72.06303243,120.07,120.02,72.06303243]
[1741636282983,72.06303243,120.08,120.03,72.06303243]
[1741636283511,72.06303243,120.05,120.02,4.24240656]
[1741636283728,72.06303243,120.05,120.0,259.62603243]
[1741636283910,72.06303243,120.04,120.0,50.063]
[1741636284914,72.06303243,120.04,120.0,54.24274794]
[1741636285924,9.383,120.09,120.0,54.24274794]
[1741636286131,9.3832,120.09,120.0,126.30578037]
[1741636286291,72.06303243,120.06,120.01,72.06303243]
[1741636286493,1.8887,120.09,120.01,72.06303243]
[1741636286494,1.8887,120.09,120.04,72.06303243]
[1741636286691,72.06303243,120.09,120.04,72.06303243]
[1741636286894,72.06303243,120.07,120.02,72.06303243]
[1741636287319,72.06303243,120.09,120.04,72.06303243]
[1741636287620,72.06303243,120.08,120.03,72.06303243]
[1741636287832,227.8534,120.11,120.02,72.06303243]
[1741636288006,72.06303243,120.08,120.02,72.06303243]
[1741636288213,72.06303243,120.06,120.01,209.705194]
[1741636288405,72.06303243,120.05,120.01,137.5]
[1741636289013,72.06303243,120.05,120.0,126.30578037]
[1741636289528,81.8,120.1,120.02,72.06303243]
[1741636289697,72.06303243,120.09,120.03,72.06303243]
[1741636289897,72.06303243,120.1,120.04,72.06303243]
[1741636290117,220.36,120.11,120.06,72.06303243]
[1741636290319,220.36,120.11,120.05,0.14216157]
[1741636290320,220.36,120.11,120.07,72.06303243]
[1741636290530,292.42303243,120.11,120.05,137.64216157]
[1741636290829,72.06303243,120.09,120.05,137.5]
[1741636291008,72.06303243,120.07,120.02,139.2562]
[1741636291241,72.06303243,120.05,120.0,269.81478037]
[1741636291521,13.42,120.09,120.0,60.25174794]
[1741636291816,72.06303243,120.05,120.0,60.25174794]
[1741636292510,72.06303243,120.04,120.0,54.24274794]
[1741636293620,72.06303243,120.03,120.0,50.063]
[1741636293814,72.06303243,120.01,120.0,50.063]
[1741636295343,170.27501372,120.01,120.0,50.063]
[1741636295633,170.41717529,120.01,120.0,29.15201356]
[1741636295800,144.12606486,120.01,120.0,29.15201356]
[1741636296004,72.06303243,120.01,120.0,29.15201356]
[1741636296205,79.56233243,120.01,120.0,29.15201356]
[1741636296503,170.27501372,120.01,120.0,29.15201356]
[1741636296705,90.71268129,120.01,120.0,29.15201356]
[1741636296900,72.06303243,120.01,120.0,29.15201356]
[1741636298803,79.56233243,120.01,120.0,29.15201356]
[1741636299323,72.06303243,120.01,120.0,29.15201356]
[1741636302641,79.56233243,120.01,120.0,29.15201356]
[1741636302838,72.06303243,120.01,120.0,29.15201356]
[1741636306114,170.41717529,120.01,120.0,29.15201356]
[1741636307344,404.47717529,120.01,120.0,29.15201356]
[1741636307843,306.12303243,120.01,120.0,29.15201356]
[1741636308015,292.72303243,120.01,120.0,29.15201356]
[1741636308215,220.66,120.01,120.0,29.15201356]
[1741636308411,292.72303243,120.01,120.0,29.15201356]
[1741636308816,220.66,120.01,120.0,29.15201356]
[1741636310234,220.66,120.01,120.0,29.29417513]
[1741636310430,220.66,120.01,120.0,101.35720756]
[1741636310637,220.68,120.08,120.01,0.28432314]
[1741636310847,72.06303243,120.07,120.01,209.84735557]
[1741636311040,72.06303243,120.08,120.02,72.06303243]
[1741636311250,72.06303243,120.08,120.03,0.14216157]
[1741636311439,72.06303243,120.08,120.03,72.06303243]
[1741636312043,72.06303243,120.08,120.03,0.14216157]
[1741636312250,72.06303243,120.07,120.02,137.5]
[1741636312550,72.06303243,120.07,120.05,20.0]
[1741636312928,72.06303243,120.08,120.04,20.0]
[1741636313228,72.06303243,120.05,120.0,33.57660937]
[1741636313427,72.06303243,120.04,120.03,20.0]
[1741636313760,72.06303243,120.04,120.0,33.57660937]
[1741636314053,72.06303243,120.02,120.0,29.15201356]
[1741636314230,72.06303243,120.01,120.0,29.15201356]
[1741636314429,85.44303243,120.06,120.0,29.15201356]
[1741636314430,72.06303243,120.02,120.0,29.15201356]
[1741636315137,85.44303243,120.06,120.0,29.15201356]
[1741636315333,72.06303243,120.02,120.0,29.15201356]
[1741636316439,81.8,120.07,120.0,29.15201356]
[1741636316440,72.06303243,120.04,120.0,29.15201356]
[1741636316954,72.06303243,120.03,120.0,29.15201356]
[1741636317354,72.06303243,120.04,120.0,29.15201356]
[1741636317557,302.44,120.07,120.0,29.15201356]
[1741636317746,72.06303243,120.06,120.0,101.21504599]
[1741636317947,220.64,120.07,120.0,101.21504599]
[1741636317948,72.06303243,120.05,120.0,29.15201356]
[1741636318426,220.64,120.07,120.0,101.21504599]
[1741636318853,220.67,120.07,120.01,65.205194]
[1741636319054,220.67,120.07,120.02,72.06303243]
[1741636319258,220.67,120.07,120.03,72.06303243]
[1741636319551,220.67,120.07,120.04,72.06303243]
[1741636319946,220.67,120.07,120.03,209.56303243]
[1741636320664,220.67,120.07,120.03,137.5]
[1741636320956,220.67,120.07,120.03,72.06303243]
[1741636321131,220.67,120.07,120.01,18.79181043]
[1741636321132,220.67,120.07,120.04,20.0]
[1741636321966,292.73303243,120.07,120.01,72.06303243]
[1741636322131,72.06303243,120.06,120.01,0.14216157]
[1741636322332,292.73303243,120.07,120.03,0.14216157]
[1741636322555,220.67,120.07,120.04,0.14216157]
[1741636322859,220.67,120.07,120.01,0.14216157]
[1741636322860,72.06303243,120.06,120.01,0.14216157]
[1741636323161,220.67,120.07,120.03,0.14216157]
[1741636323528,220.67,120.07,120.03,72.06303243]
[1741636323728,292.73303243,120.07,120.01,72.205194]
[1741636323954,220.67,120.07,120.03,0.14216157]
[1741636324158,0.03,120.07,120.04,92.34735557]
[1741636324459,0.03,120.07,120.04,20.14216157]
[1741636324661,0.03,120.07,120.02,137.5]
[1741636324954,72.09303243,120.07,120.02,209.56303243]
[1741636325160,0.03,120.07,120.03,72.34735557]
[1741636325461,72.09303243,120.07,120.02,137.5]
[1741636325665,72.06303243,120.05,120.02,137.5]
[1741636326037,0.03,120.07,120.03,0.14216157]
[1741636326540,72.09303243,120.07,120.02,209.56303243]
[1741636326738,72.09303243,120.07,120.01,72.205194]
[1741636326953,0.03,120.07,120.03,92.06303243]
[1741636327154,0.03,120.07,120.06,0.14216157]
[1741636327347,0.03,120.07,120.05,137.5]
[1741636327541,72.09303243,120.07,120.04,137.5]
[1741636328157,72.09303243,120.07,120.04,209.56303243]
[1741636328158,0.03,120.07,120.04,209.56303243]
[1741636328476,0.03,120.07,120.05,48.05756498]
[1741636328646,0.03,120.07,120.04,185.27324184]
[1741636328839,0.03,120.07,120.04,137.5]
[1741636329160,0.03,120.07,120.05,0.14216157]
[1741636329333,0.03,120.07,120.05,47.91540341]
[1741636329539,0.03,120.07,120.05,0.14216157]
[1741636329759,0.03,120.07,120.04,141.77175954]
[1741636329966,0.03,120.07,120.06,20.0]
[1741636330165,0.03,120.07,120.06,271.98045568]
[1741636330371,47.77324184,120.13,120.07,0.14216157]
[1741636330537,47.77324184,120.13,120.08,0.14216157]
[1741636330732,268.37324184,120.14,120.09,47.77324184]
[1741636330945,228.0913,120.14,120.06,20.0]
[1741636331149,47.77324184,120.09,120.04,4.27175954]
[1741636331358,47.77324184,120.12,120.03,137.64216157]
[1741636331536,47.77324184,120.08,120.04,0.14216157]
[1741636331740,47.77324184,120.11,120.05,47.91540341]
[1741636331940,47.77324184,120.12,120.08,0.14216157]
[1741636332168,47.77324184,120.12,120.07,137.5]
[1741636332363,47.77324184,120.09,120.04,20.14216157]
[1741636332552,9.1918,120.11,120.02,0.14216157]
[1741636332762,47.77324184,120.07,120.02,47.91540341]
[1741636332965,47.77324184,120.09,120.04,47.91540341]
[1741636333159,47.77324184,120.08,120.03,0.14216157]
[1741636333461,47.77324184,120.06,120.02,0.14216157]
[1741636333641,47.77324184,120.06,120.04,20.0]
[1741636333838,47.77324184,120.07,120.04,20.0]
[1741636334067,47.77324184,120.07,120.01,196.13191971]
[1741636334243,47.77324184,120.07,120.02,47.77324184]
[1741636334567,47.77324184,120.08,120.02,47.77324184]
[1741636334871,47.77324184,120.07,120.02,47.77324184]
[1741636335055,18.64964886,120.1,120.02,47.77324184]
[1741636335366,1.6987,120.11,120.05,0.14216157]
[1741636335551,47.77324184,120.11,120.05,47.91540341]
[1741636335750,302.4,120.14,120.07,47.77324184]
[1741636336051,268.37324184,120.14,120.08,47.77324184]
[1741636336372,19.3474,120.16,120.11,67.77324184]
[1741636336373,47.77324184,120.16,120.11,67.77324184]
[1741636336543,47.77324184,120.17,120.11,67.77324184]
[1741636336744,47.77324184,120.17,120.11,47.77324184]
[1741636337047,0.03,120.2,120.16,47.77324184]
[1741636337560,47.80324184,120.2,120.15,185.41540341]
[1741636337944,0.03,120.2,120.15,185.41540341]
[1741636338263,47.77324184,120.19,120.14,47.77324184]